Cogmind - Beta 14 @@@ ROGUE MODE // 2024.12.21 @ 14:46:04 Player: aloola Result: Destroyed by B-75 Beast with Magnetic Acceleration Cannon Performance ------------- Evolutions (1) 500 Regions Visited (6) 1200 Robots Destroyed (39) 195 Value Destroyed (813) 813 Prototype IDs (2) 40 Alien Tech Used (0) 0 Bonus (1040) 1040 TOTAL SCORE: 3788 Bonus ------- High Alert Combat Kills 19 Follower Combat Kills 443 Met Imprinter 300 Was Imprinted 300 Friendly Fire -22 Cogmind --------- Core Integrity 0/400 Matter 285/300 Energy 282/290 System Corruption 0% Temperature Critical (562) Movement Walking (125) Location -6/Proximity Caves Parts ------- > --- POWER (1) -------- Improved Deuterium Engine > --- PROPULSION (2) --- Titanium Leg Improved Carbon-fiber Leg > --- UTILITY (4) ------ Sensor Array Signal Interpreter Medium Armor Plating > --- WEAPON (2) ------- Heavy Beamcaster Particle Cannon > --- INVENTORY (5) ---- Titanium Leg Improved EM Shotgun Bore Cannon CR-A16's Pointy Stick Self-destruct Interrupter (50) Peak State ------------ > --- POWER ------------ Light Nuclear Core > --- PROPULSION ------- Titanium Leg Improved Carbon-fiber Leg > --- UTILITY ---------- Sensor Array Signal Interpreter Medium Armor Plating Phasing AFG > --- WEAPON ----------- Heavy Beamcaster Particle Cannon > --- INVENTORY -------- Wheel Compact Wheel Cooling System Improved EM Shotgun Bore Cannon [Rating: 36] Favorites ----------- Power Light Nuclear Core Engine Light Ion Engine Power Core Light Nuclear Core Propulsion Wheel Leg Aluminum Leg Wheel Wheel Utility Signal Interpreter Device Sensor Array Storage High-capacity Matter Pod Processor Signal Interpreter Protection Medium Armor Plating Weapon Particle Cannon Energy Gun Heavy Beamcaster Energy Cannon Particle Cannon Ballistic Gun Heavy Assault Rifle Launcher Grenade Launcher Special Weapon Mining Laser Slashing Weapon Katana Piercing Weapon CR-A16's Pointy Stick Build | -11 -10 -10 -9 -9 -7 -6 ------- Run | Yrd Mat Min Mat Min Zio Pro Slots Evolved 2 | . . . 2 . . . Power . | . . . . . . . Propulsion . | . . . . . . . Utility 2 | . . . 2 . . . Weapon . | . . . . . . . Parts Attached 80 | 5 5 6 45 1 10 8 Power 13 | 1 1 1 5 . 1 4 Engine 10 | 1 1 1 4 . . 3 Core 3 | . . . 1 . 1 1 Reactor . | . . . . . . . Propulsion 18 | 2 . 3 11 . 2 . Treads . | . . . . . . . Leg 6 | 2 . . 2 . 2 . Wheel 12 | . . 3 9 . . . Hover . | . . . . . . . Flight . | . . . . . . . Utility 25 | . 3 . 13 1 5 3 Device 17 | . 1 . 8 1 4 3 Storage 2 | . 2 . . . . . Processor 2 | . . . 2 . . . Hackware . | . . . . . . . Protection 4 | . . . 3 . 1 . Artifact . | . . . . . . . Weapon 24 | 2 1 2 16 . 2 1 Energy Gun 9 | 1 . . 7 . 1 . Energy Cannon 3 | . . . 2 . . 1 Ballistic Gun 2 | 1 . . 1 . . . Ballistic Cannon . | . . . . . . . Launcher 3 | . 1 1 1 . . . Special Weapon 4 | . . 1 3 . . . Impact Weapon . | . . . . . . . Slashing Weapon 2 | . . . 2 . . . Piercing Weapon 1 | . . . . . 1 . Special Melee Weapon . | . . . . . . . Unidentified Prototypes 1 | . . . . . 1 . Parts Lost 16 | . . 2 12 . . 2 Power 4 | . . 1 2 . . 1 Propulsion 4 | . . 1 3 . . . Utility 4 | . . . 3 . . 1 Weapon 4 | . . . 4 . . . Highest Loss Streak 9 | . . 2 9 . . 1 To Critical Strikes . | . . . . . . . Average Slot Usage (%) 94 | . 79 95 89 100 100 98 Engine 6 | . 14 13 8 . . 9 Core 4 | . . . 2 11 11 . Leg 10 | . 28 11 . . 11 22 Wheel 11 | . . 13 20 22 10 . Device 17 | . 4 14 15 11 21 22 Storage 3 | . 4 14 2 . . . Processor 8 | . . . 10 11 11 11 Protection 7 | . . . 7 22 11 11 Energy Gun 11 | . 14 14 9 11 11 11 Energy Cannon 5 | . . . 7 11 6 6 Launcher 3 | . 13 12 1 . . . Piercing Weapon 2 | . . . . . 4 4 Peak Build Rating 36 | 5 7 7 18 18 36 30 Average Rating 18 | 3 5 6 11 17 28 27 On Entrance 11 | . 5 7 7 18 17 27 Naked Turns . | . . . . . . . Heaviest Build 42 | 6 18 15 26 26 42 30 Greatest Support 35 | 20 20 20 34 26 35 35 Greatest Overweight (x) 1 | . . 1 1 . 1 . Average Overweight (x) . | . . . . . . . Largest Inventory Capacity 10 | 5 10 5 5 5 5 5 Average Capacity 5 | 5 5 5 5 5 5 5 Most Carried 5 | 1 5 5 5 5 5 5 Average Carried 4 | . 3 4 4 4 4 5 Final Capacity 5 | 5 5 5 5 5 5 5 Final Carried 5 | 1 5 5 5 5 5 5 Class Distribution -------------------- 76% | Mutant 20% | Scavenger-Mutant Dominant Class ---------------- Mutant | -10/Materials Mutant | -10/Mines Scavenger-Mutant | -9/Materials Scavenger-Mutant | -9/Mines Mutant | -7/Zion Mutant | -6/Proximity Caves Resources | -11 -10 -10 -9 -9 -7 -6 ----------- Run | Yrd Mat Min Mat Min Zio Pro Matter Collected 1076 | 255 43 76 514 . 118 70 Remotely . | . . . . . . . Salvage Created 1001 | 34 266 70 631 . . . Parts 69 | 1 12 17 39 . . . Haulers Intercepted 1 | . 1 . . . . . Recyclers Shooed 1 | . 1 . . . . . Parts Field Recycled . | . . . . . . . Retrieved Matter . | . . . . . . . Parts Self-Destructed 11 | . . . . . . 11 Prevented 6 | . . . . . . 6 Kills | -11 -10 -10 -9 -9 -7 -6 ------- Run | Yrd Mat Min Mat Min Zio Pro Combat Hostiles Destroyed 23 | 1 5 6 11 . . . Melee 3 | . . . 3 . . . Guns 5 | . 1 2 2 . . . Cannons 6 | . . . 6 . . . AOE 8 | . 4 4 . . . . Classes Destroyed 11 | 1 4 2 4 . . . Worker 3 | . 3 . . . . . Builder 4 | . 2 2 . . . . Tunneler 1 | . . 1 . . . . Hauler 1 | . 1 . . . . . Recycler 1 | . . . 1 . . . Operator 1 | . . . 1 . . . Watcher 5 | . 1 . 4 . . . Swarmer 8 | . . 6 2 . . . Grunt 11 | 1 5 . 5 . . . Duelist 1 | . . . 1 . . . Sentry 3 | . . . 3 . . . Best Kill Streak 5 | 1 5 3 3 . . . Combat Bots Only 3 | 1 2 3 3 . . . Max Kills in Single Turn 3 | 1 3 3 1 . . . Gunslinging . | . . . . . . . Exploded 2 | . 2 2 . . . . Melee 1 | . . . 1 . . . Uniques/NPCs Destroyed . | . . . . . . . Combat | -11 -10 -10 -9 -9 -7 -6 -------- Run | Yrd Mat Min Mat Min Zio Pro Hostile Shots Fired 192 | 7 23 17 106 . . 39 Missed 67 | 2 8 8 35 . . 14 Damage Taken 1961 | 57 189 84 1084 . . 547 Core 495 | 24 47 13 282 . . 129 Absorbed by Shields . | . . . . . . . Regen/Repaired (Parts) 14 | . . . . . 14 . Core Remaining (%) 78 | 90 . 66 . . . . Volleys Fired 82 | 5 13 15 41 . . 8 Largest 2 | 2 2 2 2 . . 2 Hottest 149 | 70 80 100 124 . . 149 Shots Fired 126 | 10 18 22 61 . . 15 Gun 79 | 10 13 9 39 . . 8 Cannon 26 | . . . 19 . . 7 Launcher 13 | . 5 7 1 . . . Special 8 | . . 6 2 . . . Kinetic 8 | 5 . . 3 . . . Thermal 101 | 5 13 15 53 . . 15 Explosive 13 | . 5 7 1 . . . Electromagnetic 4 | . . . 4 . . . Robot Hit Streak 11 | 3 9 2 11 . . 7 Robot Miss Streak 5 | 2 2 4 5 . . 4 Penetration Max . | . . . . . . . Secondary Targets . | . . . . . . . Shots Hit Robots 80 | 5 11 5 49 . . 10 Core Hits 57 | 1 19 10 25 . . 2 Critical Kills . | . . . . . . . Critical Parts Destroyed . | . . . . . . . Critical Strikes 3 | 1 . . 1 . . 1 Burn 2 | 1 . . . . . 1 Sever 1 | . . . 1 . . . Melee Attacks 13 | . . . 13 . . . Impact . | . . . . . . . Slashing 13 | . . . 13 . . . Piercing . | . . . . . . . Sneak Attacks . | . . . . . . . Combat Hostiles . | . . . . . . . Follow-up Attacks . | . . . . . . . Damage Inflicted 2309 | 54 684 344 979 . . 248 Guns 638 | 54 112 24 328 . . 120 Cannons 413 | . . . 285 . . 128 Explosions 939 | . 572 318 49 . . . Melee 269 | . . . 269 . . . Ramming 2 | . . 2 . . . . Kinetic 17 | 17 . . . . . . Thermal 1055 | 37 112 24 634 . . 248 Explosive 939 | . 572 318 49 . . . Electromagnetic 27 | . . . 27 . . . Impact . | . . . . . . . Slashing 269 | . . . 269 . . . Piercing . | . . . . . . . Highest Corruption . | . . . . . . . Average Corruption . | . . . . . . . Corruption Purged . | . . . . . . . Corruption Blocked . | . . . . . . . Overload Shots . | . . . . . . . Overflow Damage 37 | . 15 20 2 . . . Projectiles 2 | . . . 2 . . . Explosions 35 | . 15 20 . . . . Melee . | . . . . . . . Knockbacks . | . . . . . . . Impact . | . . . . . . . Kinetic . | . . . . . . . Secondary . | . . . . . . . Self-Inflicted Damage 15 | . . 15 . . . . Shots 2 | . . 2 . . . . Rammed . | . . . . . . . Targets Rammed 1 | . . 1 . . . . Kicked 1 | . . 1 . . . . Crushed . | . . . . . . . Highest Temperature 299 | 110 156 40 299 . . 230 Average Temperature 62 | 60 58 12 72 . . 98 Received Heat Transfer 872 | 30 108 . 333 . . 401 Siege Activations . | . . . . . . . Robots Corrupted . | . . . . . . . Combat Hostiles . | . . . . . . . Parts Fried . | . . . . . . . Impact Corruptions . | . . . . . . . Robots Melted 1 | 1 . . . . . . Combat Hostiles 1 | 1 . . . . . . Parts Melted 3 | 2 . 1 . . . . Heat Transferred 2434 | 185 333 74 1361 . . 481 Parts Sabotaged . | . . . . . . . Parts Stolen . | . . . . . . . Parts Stripped . | . . . . . . . Power Chain Reactions . | . . . . . . . Alert | -11 -10 -10 -9 -9 -7 -6 ------- Run | Yrd Mat Min Mat Min Zio Pro Peak Influence 408 | 20 272 306 408 109 . . Initial 109 | . 13 105 40 109 . . Average 216 | 1 93 183 295 109 . . Maximum Alert Level 2 | . 1 1 2 . . . Low Security (%) 46 | 100 80 68 17 100 . . Level 1 51 | . 19 31 78 . . . Level 2 2 | . . . 4 . . . Level 3 . | . . . . . . . Level 4 . | . . . . . . . Level 5 . | . . . . . . . High Security . | . . . . . . . Max Security . | . . . . . . . Squads Dispatched 6 | . 2 . 4 . . . Investigation 3 | . . . 3 . . . Extermination . | . . . . . . . Reinforcement 3 | . 2 . 1 . . . Assault . | . . . . . . . Garrison . | . . . . . . . Intercept . | . . . . . . . Searches Triggered . | . . . . . . . Construction Impeded . | . . . . . . . Haulers Reinforced . | . . . . . . . Active Scanning Responses . | . . . . . . . Cargo Convoy Interrupts . | . . . . . . . Stealth | -11 -10 -10 -9 -9 -7 -6 --------- Run | Yrd Mat Min Mat Min Zio Pro Distress Signals 1 | . 1 . . . . . Communications Jammed . | . . . . . . . Distress Signals . | . . . . . . . Times Spotted 59 | 1 12 6 30 . . 10 Peak Tracking Total 7 | 1 2 3 7 . . 4 Tactical Retreats 3 | . 1 . 1 . . 1 Traps | -11 -10 -10 -9 -9 -7 -6 ------- Run | Yrd Mat Min Mat Min Zio Pro Traps Triggered 3 | . . . 3 . . . Indirectly . | . . . . . . . Trap Hack Attempts . | . . . . . . . Triggered . | . . . . . . . Disarmed . | . . . . . . . Reprogrammed . | . . . . . . . Reused . | . . . . . . . Traps Extracted . | . . . . . . . Installed . | . . . . . . . Triggered . | . . . . . . . Machines | -11 -10 -10 -9 -9 -7 -6 ---------- Run | Yrd Mat Min Mat Min Zio Pro Machines Disabled 3 | . 1 . 2 . . . Max in Single Turn 1 | . 1 . 1 . . . Machines Repaired . | . . . . . . . Machines Dismantled . | . . . . . . . Machines Sabotaged . | . . . . . . . Overloaded Fab Kills . | . . . . . . . Hacking | -11 -10 -10 -9 -9 -7 -6 --------- Run | Yrd Mat Min Mat Min Zio Pro Machines Accessed 15 | . 3 . 11 . 1 . Terminals 10 | . 2 . 8 . . . Fabricators . | . . . . . . . Repair Stations . | . . . . . . . Recycling Units 2 | . 1 . 1 . . . Scanalyzers 2 | . . . 2 . . . Garrison Access . | . . . . . . . Total Hacks 51 | . 10 . 34 . 7 . Successful 30 | . 8 . 15 . 7 . Failed 20 | . 2 . 18 . . . Catastrophic 3 | . . . 3 . . . Database Lockouts 1 | . . . 1 . . . Manual 18 | . 3 . 13 . 2 . Terminals 33 | . 8 . 25 . . . Fabricators . | . . . . . . . Repair Stations . | . . . . . . . Recycling Units 3 | . 2 . 1 . . . Scanalyzers 8 | . . . 8 . . . Garrison Access . | . . . . . . . Terminal Hacks 20 | . 6 . 7 . 7 . Record 7 | . 3 . 4 . . . Part Schematic 7 | . . . . . 7 . Robot Analysis 1 | . 1 . . . . . Emergency Access Points 1 | . 1 . . . . . Alert Level 1 | . 1 . . . . . Recall Investigation 2 | . . . 2 . . . Registered Components 1 | . . . 1 . . . Fabricator Hacks . | . . . . . . . Repair Station Hacks . | . . . . . . . Recycling Unit Hacks 3 | . 2 . 1 . . . Process 1 | . 1 . . . . . Report Inventory 2 | . 1 . 1 . . . Scanalyzer 7 | . . . 7 . . . Insert Component 4 | . . . 4 . . . Analyze 3 | . . . 3 . . . Garrison Access Hacks . | . . . . . . . Unauthorized Hacks . | . . . . . . . Terminals . | . . . . . . . Fabricators . | . . . . . . . Repair Stations . | . . . . . . . Recycling Units . | . . . . . . . Scanalyzers . | . . . . . . . Garrison Access . | . . . . . . . Data Cores Recovered 1 | . . . 1 . . . Used . | . . . . . . . Hacking Detections 12 | . 2 . 10 . . . Full Trace Events 4 | . . . 4 . . . Feedback Events . | . . . . . . . Feedback Blocked . | . . . . . . . Robot Schematics Acquired . | . . . . . . . Robots Built . | . . . . . . . Authchips . | . . . . . . . Time . | . . . . . . . Total Robot Build Rating . | . . . . . . . Part Schematics Acquired 9 | . . . 2 . 7 . Parts Built . | . . . . . . . Authchips . | . . . . . . . Time . | . . . . . . . Total Part Build Rating . | . . . . . . . Parts Repaired . | . . . . . . . Time . | . . . . . . . Parts Recycled . | . . . . . . . Recycled Matter 184 | . 184 . . . . . Retrieved Matter . | . . . . . . . Retrieved Components . | . . . . . . . Parts Scanalyzed 4 | . . . 4 . . . Part Schematics Acquired 2 | . . . 2 . . . Parts Damaged . | . . . . . . . Bothacking | -11 -10 -10 -9 -9 -7 -6 ------------ Run | Yrd Mat Min Mat Min Zio Pro Used RIF Installer . | . . . . . . . Robots Hacked . | . . . . . . . Non-combat . | . . . . . . . Combat . | . . . . . . . Robot Hacks Applied . | . . . . . . . Relay Couplers Released . | . . . . . . . Fabnet Peak Effective % . | . . . . . . . Robots Rewired . | . . . . . . . Allies Hacked . | . . . . . . . Hacks Repelled . | . . . . . . . Allies | -11 -10 -10 -9 -9 -7 -6 -------- Run | Yrd Mat Min Mat Min Zio Pro Total Allies 7 | . . 3 . . 4 . Largest Group 4 | . . 3 3 . 4 4 Highest-Rated Group 157 | . . 40 40 . 157 157 Highest-Rated Ally 41 | . . 16 16 . 41 41 Total Orders 2 | . . 1 1 . . . FOLLOW 1 | . . 1 . . . . AID 1 | . . . 1 . . . Ally Attacks 71 | . . . 36 . . 35 Total Damage 1588 | . . . 315 . . 1273 Kills 18 | . . . 9 . . 9 Allies Corrupted . | . . . . . . . Allies Melted . | . . . . . . . Intel | -11 -10 -10 -9 -9 -7 -6 ------- Run | Yrd Mat Min Mat Min Zio Pro Robot Analysis Total 1 | . 1 . . . . . Derelict Logs Recovered 1 | . . 1 . . . . Drone Launches . | . . . . . . . Drone Recoveries . | . . . . . . . Exploration | -11 -10 -10 -9 -9 -7 -6 ------------- Run | Yrd Mat Min Mat Min Zio Pro Turns Passed 4518 | 103 355 659 1200 58 1668 475 Spaces Moved 3802 | 82 237 575 1137 57 1381 333 Core 41 | 26 . . 15 . . . Treads . | . . . . . . . Legs 1494 | 56 237 209 3 . 656 333 Wheels 2267 | . . 366 1119 57 725 . Hover . | . . . . . . . Flight . | . . . . . . . Fastest Speed 50 | 50 120 80 50 90 90 125 Average Speed 103 | 97 120 100 84 90 114 125 Slowest Speed 190 | 120 120 190 130 90 125 125 Overloaded Moves . | . . . . . . . Propulsion Burnouts . | . . . . . . . Robots Hopped . | . . . . . . . Cave-ins Triggered . | . . . . . . . Exploration Rate (%) 47 | 7 35 84 70 17 91 25 Regions Visited 6 Branch Regions 4 Pre-discovered Areas 3 | . . 2 . . 1 . Known Exits Taken 3 | . . . 1 1 1 . Unknown Exits Taken 3 | 1 1 1 . . . . Scrap Searched 5 | . . 1 . . 3 1 Spaces Dug 6 | . . 6 . . . . Terrain Destroyed 96 | . 31 58 7 . . . Melee . | . . . . . . . Projectile 6 | . . 6 . . . . AOE 90 | . 31 52 7 . . . Terrain Rammed . | . . . . . . . Walls Destroyed . | . . . . . . . Machines Disabled . | . . . . . . . Actions | -11 -10 -10 -9 -9 -7 -6 --------- Run | Yrd Mat Min Mat Min Zio Pro Total 4198 | 93 288 620 1285 63 1472 377 Wait 166 | 1 28 19 23 4 67 24 Move 3796 | 81 236 574 1136 56 1380 333 Hop . | . . . . . . . Pick Up 19 | 1 4 2 4 1 7 . Fast Attach 30 | 5 3 2 17 . . 3 Attach 8 | . . 1 7 . . . Detach 10 | . 1 . 9 . . . Swap 42 | . 2 3 21 1 10 5 Drop 31 | . 1 3 14 1 8 4 Fire 82 | 5 13 15 41 . . 8 Melee 13 | . . . 13 . . . Ram . | . . . . . . . Kick 1 | . . 1 . . . . Crush . | . . . . . . . Escape Stasis . | . . . . . . . Rewire . | . . . . . . . Trap . | . . . . . . . Miscellaneous . | . . . . . . . Route ------- -11/Scrapyard -10/Materials -10/Mines (discovered 2 exits: *Mat x2) -9/Materials (discovered 3 exits: *Mat x2 / *Min) -9/Mines -7/Zion -6/Proximity Caves History --------- Turn | Location | Event 2 | -11/Scrapyard | Met Revision 17 76 | -11/Scrapyard | Discovered new exit (range 8) 104 | -11/Scrapyard | Entered Materials 292 | -10/Materials | Discovered new exit (range 14) 326 | -10/Materials | Build established: Mutant 459 | -10/Materials | Entered Mines 845 | -10/Mines | Learned location of Storage (-7) 933 | -10/Mines | Assisted by bots powering up and referring to "LRC-V3" 1009 | -10/Mines | Discovered new exit (range 12) 1021 | -10/Mines | YI-UF0 nonchalantly dropped a Grenade Launcher on the ground 1090 | -10/Mines | Discovered new exit (range 5) 1118 | -10/Mines | Entered Materials 1118 | -9/Materials | Accompanied by 3 allies 1118 | -9/Materials | Evolved 2 slots: Utility x2 1386 | -9/Materials | Discovered new exit (range 16) 1417 | -9/Materials | Core integrity fell below 50% 1420 | -9/Materials | Lost 3 allies 1464 | -9/Materials | Lost 9 parts (1p2n2u4w) 1525 | -9/Materials | Identified exit to Mines 1749 | -9/Materials | Build established: Scavenger-Mutant 1763 | -9/Materials | Discovered new exit (range 16) 1774 | -9/Materials | Identified exit to Materials 1872 | -9/Materials | Central database locked down 2131 | -9/Materials | Discovered exit to Materials (range 12) 2318 | -9/Materials | Entered Mines 2325 | -9/Mines | Received a Rocket Launcher from a helpful Derelict 2355 | -9/Mines | Met a Derelict bent on vengeance 2363 | -9/Mines | A Derelict revealed a hidden shortcut to a safe place 2372 | -9/Mines | Identified exit to Zion 2376 | -9/Mines | Entered Zion 2405 | -7/Zion | Found Prototype Device 2411 | -7/Zion | Identified Phasing AFG 2448 | -7/Zion | Discovered new exit (range 15) 2462 | -7/Zion | Identified exit to Proximity Caves 2788 | -7/Zion | Build established: Mutant 2918 | -7/Zion | Learned location of Recycling (-7) 3138 | -7/Zion | Met Imprinter 3170 | -7/Zion | Imprinted 3172 | -7/Zion | Declared Zion's savior 3348 | -7/Zion | Found CR-A16's Pointy Stick 4044 | -7/Zion | Entered Proximity Caves 4044 | -6/Proximity Caves | Accompanied by 4 allies 4046 | -6/Proximity Caves | Attracted the attention of an 0b10 checkpoint 4091 | -6/Proximity Caves | Unaware initiated a cargo recovery operation 4500 | -6/Proximity Caves | Spotted B-75 Beast 4509 | -6/Proximity Caves | Core integrity fell below 20% 4519 | -6/Proximity Caves | Destroyed by B-75 Beast with Magnetic Acceleration Cannon Last Messages --------------- Slug penetrates Wall. Penetrated by Slug. Slug penetrates Wall. FC-11W(M) suffers critical hit (Burn). H-66 Slayer system terminally corrupted. Slug penetrates Wall. H-66 Slayer misfires. Slug penetrates Wall. H-66 Slayer destroyed. Corrupted Gauss Rifle self-destruct mechanism malfunctions. Corrupted Flexi-carbon Leg self-destruct mechanism malfunctions. Corrupted Gauss Rifle self-destruct mechanism malfunctions. Acquired Imp. Deuterium Engine. Dropped Sensor Array. Acquired Sensor Array. Seismic Detector destroyed. Critical hit (Meltdown: +320). Map ----- +----------------------------------------------------+ | #?????????????????????????????????????????????? | | #?????????????????????????????????????????????? | | #??????????????????????????????????????????????? | | ##??????????????????????????????????????????????? | | ##??????????????????????????????????????????????? | | #??????????????????????????????????????????????? | | ##?????????????????????????????????????????????? | | #?????????????????????????????????????????????? | | ####?????????????????????????????????????????????? | | #????????????????????????????????????????????????? | | ?????????????????????????????????????????????????? | | #?######????????????????????##???????????????????? | | ### ##?????????????????? #???????????????????? | | #?????????????????? #???????????????????? | | #??????# ?########? #???????????????????? | | ## ##??????? # ## #???????????????????? | | #?####????????? # # ##??????????????????? | | #??????????????? # #??????????????????? | | #############?????? ##?????????????????? | | ## ## #??????? ####??????????????? | | ## # # #???????? BB ### ??????????? | | ### # # # #????????#;BB #?????????? | | ## ### # # #######??#; ????????????? | | # # # # # ## ##?#;MM ### #?????????? | | # # ## ## ###M% #????????? | | #### @ % #????????? | | #??# % ## ###?????????????? | | #??####### #### ##????????????????????? | | ######????????## ###???;#?????????????????????? | | ####??????????????###?????##?????????????????????? | | ?????????????????????????????????????????????????? | | ?????????????????????????????????????????????????? | | ?????????????????????????????????????????????????? | | ?????????????????????????????????????????????????? | | ?????????????????????????????????????????????????? | | ?????????????????????????????????????????????????? | | ?????????????????????????????????????????????????? | | ?????????????????????????????????????????????????? | | ?????????????????????????????????????????????????? | | ?????????????????????????????????????????????????? | | ?????????????????????????????????????????????????? | | ?????????????????????????????????????????????????? | | ?????????????????????????????????????????????????? | | ?????????????????????????????????????????????????? | | ?????????????????????????????????????????????????? | | | | | | | | | | | +----------------------------------------------------+ Best States ------------- Heat Dissipation 72 Energy Generation 25 Energy Capacity 290 Matter Stores 314 Matter Capacity 500 Sight Range 16 Robot Scan Range 14 Terrain Scan Range 14 Terrain Scan Density 10 Armor Coverage 375 Evasion (%) 55 Melee Accuracy 5 Energy Filtering 30 Item Schematics ----------------- Sensor Array | -9/Materials | Scanalyzed Particle Cannon | -9/Materials | Scanalyzed Riot Gun | -7/Zion | Free Tactical Coordination Suite | -7/Zion | Free Battle Cannon | -7/Zion | Free Flamer | -7/Zion | Free Hvy. Riot Gun | -7/Zion | Free Barrage Gun | -7/Zion | Free Hvy. Beamcaster | -7/Zion | Free Robot Schematics ------------------ None Fabricated ------------ Nothing Alien Tech Used ----------------- None Achievements -------------- GoHome() It's Just You Loot Pinata Robot Respite Safety First The One Tourist Challenges ------------ None Game ------ Seed PrecisionMetaNanovents Manual? 0 Play Time 01:57:29 Cumulative 5.7 hours Start 2024.12.20 @ 22:20:50 End 2024.12.21 @ 14:46:04 Sessions 9 Manual Loads 0 Difficulty Rogue Special Mode None Game No. 2 Rogue 2 Adventurer 0 Explorer 0 Win Type - Total 0 Types 0/0/0/0/0/0/0/0/0 Lore% 3 Gallery% 7 Achievement% 7 Wizard Run 0 Options --------- Layout 1 ASCII 0 Keyboard 1 Movement Numpad Keybinds 0 Fullscreen 1 Font 24/Smallcaps Map View 50x35 Zoom Use 0% Tactical HUD 0 Map Filters NONE Filters NONE Steam 1 RUN: b05273fe-6b3e-4a4d-b69c-f95bbcb6b6ac